bitfinex-derivatives/quotes_BTCF0:USTF0_20251202
["timestamp","ask_amount","ask_price","bid_price","bid_amount"]
[1764706733842,1.04718,91335.0,91334.0,0.52344]
[1764706734038,1.04718,91335.0,91334.0,0.52144]
[1764706735640,1.04718,91335.0,91334.0,1.19413]
[1764706735844,1.39075,91335.0,91334.0,1.19413]
[1764706736032,1.39075,91335.0,91334.0,0.86113]
[1764706736234,1.39075,91335.0,91334.0,0.52144]
[1764706736843,1.39075,91335.0,91334.0,0.86113]
[1764706737935,1.39075,91335.0,91334.0,1.19413]
[1764706739139,1.39075,91335.0,91326.0,0.00027375]
[1764706739346,1.39075,91335.0,86023.0,0.00244505]
[1764706739347,0.66815,91280.0,91279.0,0.09802168]
[1764706739643,0.00016427,91289.0,91288.0,0.33969]
[1764706739942,0.00016427,91289.0,91288.0,1.09269]
[1764706740246,0.6684122,91289.0,91288.0,0.5194]
[1764706740538,0.6684122,91289.0,91288.0,0.51948]
[1764706740743,0.7218622,91289.0,91288.0,1.19217]
[1764706741241,0.7218622,91289.0,91288.0,0.51948]
[1764706741443,0.7218622,91289.0,91288.0,1.60217]
[1764706741836,0.29956268,91340.0,91288.0,1.60217]
[1764706741837,0.3608,91317.0,91305.0,0.25622]
[1764706742136,0.3608,91317.0,91310.0,0.29956268]
[1764706742340,0.3608,91317.0,91310.0,0.41]
[1764706742946,4.613e-05,91316.0,91310.0,0.41]
[1764706744245,0.20866,91308.0,91304.0,0.00016427]
[1764706744440,0.3608,91305.0,91304.0,0.63733467]
[1764706744640,0.3608,91305.0,91304.0,1.14570427]
[1764706744943,4.613e-05,91316.0,91305.0,0.0109503]
[1764706745134,0.67674,91305.0,91304.0,0.00016427]
[1764706745336,0.67674,91305.0,91304.0,0.51952427]
[1764706745635,0.001,91305.0,91304.0,0.77574427]
[1764706745842,0.67774,91305.0,91304.0,0.51952427]
[1764706746242,0.67874,91305.0,91304.0,0.51952427]
[1764706746950,0.67974,91305.0,91304.0,0.51952427]
[1764706748247,0.67974,91305.0,91304.0,0.51936427]
[1764706748450,0.68074,91305.0,91304.0,0.51932427]
[1764706748850,0.68074,91305.0,91304.0,0.51928427]
[1764706749147,0.68074,91305.0,91277.0,0.99676]
[1764706749148,0.34199,91278.0,91277.0,0.99676]
[1764706749340,0.70283613,91278.0,91277.0,1.5268336]
[1764706750046,0.67674,91276.0,91263.0,0.99676]
[1764706750345,0.3608,91270.0,91269.0,0.25622]
[1764706750648,4.613e-05,91278.0,91269.0,0.60622]
[1764706750847,0.3608,91272.0,91269.0,0.60622]
[1764706751143,0.70279,91272.0,91271.0,0.25622]
[1764706751343,0.3608,91272.0,91271.0,0.40622]
[1764706751738,1.03754,91272.0,91271.0,0.27811]
[1764706752042,0.3618,91272.0,91271.0,0.66622]
[1764706752243,0.20866,91266.0,91265.0,0.25622]
[1764706752440,0.001,91272.0,91271.0,0.12811]
[1764706752745,0.001,91272.0,91271.0,0.43811]
[1764706752951,0.001,91272.0,91271.0,0.56622]
[1764706753144,0.001,91272.0,91246.0,0.05896006]
[1764706753145,0.67674,91263.0,91246.0,0.05896006]
[1764706753343,0.67674,91263.0,91258.0,0.0109558]
[1764706753541,0.67674,91263.0,91262.0,0.12811]
[1764706753743,0.67674,91263.0,91262.0,0.52622]
[1764706754446,0.67674,91263.0,91256.0,0.0109562]
[1764706754652,0.67674,91263.0,91256.0,0.29]
[1764706754847,0.67774,91263.0,91256.0,0.42]
[1764706755048,0.67774,91263.0,91258.0,0.1]
[1764706755358,0.67774,91263.0,91225.0,0.05868607]
[1764706755359,0.20866,91238.0,91225.0,0.05868607]
[1764706755543,0.3608,91242.0,91241.0,0.35702]
[1764706755742,0.001,91263.0,91251.0,0.35702]
[1764706755957,0.3727554,91263.0,91251.0,0.76702]
[1764706756140,0.8854,91252.0,91251.0,0.41]
[1764706756346,0.0109578,91243.0,91226.0,0.3717597]
[1764706756652,0.67674,91241.0,91240.0,0.010958]
[1764706756950,0.3608,91242.0,91241.0,0.367978]
[1764706757158,7e-08,91244.0,91243.0,0.35702]
[1764706757359,7e-08,91244.0,91243.0,0.70702]
[1764706758255,7e-08,91244.0,91243.0,0.80702]
[1764706758854,0.00100007,91244.0,91243.0,0.70702]
[1764706759659,0.0001068,91252.0,91243.0,0.70702]
[1764706759660,0.0001068,91252.0,91251.0,0.3679768]
[1764706759857,0.0001068,91252.0,91251.0,1.2572968]
[1764706760445,0.3608,91261.0,91260.0,0.0109557]
[1764706760651,0.00016437,91270.0,91269.0,0.17851]
[1764706760859,0.00016437,91270.0,91269.0,0.69771]
[1764706761052,0.67690437,91270.0,91269.0,0.5192]
[1764706761560,0.67697354,91270.0,91269.0,0.69771]
[1764706761856,0.67797354,91270.0,91269.0,1.25622]
[1764706762655,0.00123354,91270.0,91269.0,1.25622]
[1764706763158,0.67797354,91270.0,91269.0,1.25622]
[1764706764653,0.67797354,91270.0,91269.0,1.2671746]
[1764706765457,0.67797354,91270.0,91269.0,0.87622]
[1764706765659,0.67797354,91270.0,91269.0,0.69771]
[1764706765962,0.67797354,91270.0,91269.0,0.7086646]
[1764706766169,0.67797354,91270.0,91269.0,0.69771]
[1764706766461,0.67797354,91270.0,91269.0,0.87622]
[1764706766855,0.00123354,91270.0,91269.0,1.22622]
[1764706767059,0.00123354,91270.0,91269.0,1.42622]
[1764706767361,0.67797354,91270.0,91269.0,1.32622]
[1764706767567,0.67797354,91270.0,91269.0,1.22622]
[1764706767751,0.67797354,91270.0,91269.0,0.70702]
[1764706767953,0.67797354,91270.0,91269.0,1.2257]
[1764706768360,0.67797354,91270.0,91269.0,1.04719]
[1764706768561,0.67797354,91270.0,91269.0,0.86868]
[1764706768961,0.67797354,91270.0,91269.0,1.04719]
[1764706769361,1.07797354,91270.0,91260.0,0.00016437]
[1764706769655,0.20866,91247.0,91233.0,0.67439]
[1764706769954,6.917e-05,91246.0,91234.0,0.7151]
[1764706770154,6.917e-05,91246.0,91245.0,0.67439]
[1764706770352,6.917e-05,91246.0,91245.0,1.07439]
[1764706770566,6.917e-05,91246.0,91245.0,1.59455]
[1764706770867,0.72166917,91246.0,91245.0,1.0853475]
[1764706771053,0.72266917,91246.0,91245.0,1.6054675]
[1764706771254,0.72266917,91246.0,91245.0,1.7054675]
[1764706772567,0.72266917,91246.0,91245.0,1.8054675]
[1764706773269,0.72266917,91246.0,91245.0,2.8026275]
[1764706773667,0.72266917,91246.0,91245.0,2.6026275]
[1764706774863,0.69740363,91246.0,91245.0,2.7026275]
[1764706775358,0.69740363,91246.0,91245.0,2.8026275]
[1764706778374,0.69740363,91246.0,91245.0,2.8021875]
[1764706778866,0.69740363,91246.0,91245.0,2.8021475]
[1764706779259,0.69740363,91246.0,91245.0,2.79119]
[1764706779459,1.03982363,91246.0,91245.0,1.07439]
[1764706779662,1.03982363,91246.0,91245.0,2.59111]
[1764706780664,1.03982363,91246.0,91245.0,1.59375]
[1764706780864,0.69640363,91246.0,91245.0,1.59369]
[1764706781064,0.69740363,91246.0,91245.0,1.59369]
[1764706781866,0.1934067,91246.0,91245.0,1.59369]
[1764706782062,0.3608,91280.0,91279.0,0.6852834]
[1764706782374,0.0769647,91309.0,91279.0,0.6852834]
[1764706782375,0.34242,91295.0,91294.0,0.0109516]
[1764706782571,0.70322,91295.0,91294.0,0.5302716]
[1764706782870,0.70322,91295.0,91294.0,0.5394575]
[1764706783073,0.3608,91295.0,91294.0,1.7480775]
[1764706784072,0.3618,91295.0,91294.0,1.7480775]
[1764706784269,0.3618,91295.0,91294.0,1.8480775]
[1764706784676,0.3618,91295.0,91294.0,1.6128359]
[1764706785172,0.70422,91295.0,91294.0,1.60365]
[1764706785377,1.04323,91295.0,91294.0,1.19365]
[1764706785567,1.04223,91295.0,91294.0,1.19365]
[1764706785768,1.04323,91295.0,91294.0,1.19565]
[1764706786174,1.04223,91295.0,91294.0,1.19365]
[1764706786483,1.04323,91295.0,91294.0,1.19565]
[1764706786689,1.04323,91295.0,91294.0,0.6858252]
[1764706786877,1.04323,91295.0,91294.0,1.2049452]
[1764706787181,1.04323,91295.0,91294.0,1.2047452]
[1764706787775,1.04323,91295.0,91294.0,1.2156968]
[1764706788775,1.04223,91295.0,91294.0,1.2136968]
[1764706788976,1.04323,91295.0,91294.0,1.5856968]
[1764706790078,0.3618,91295.0,91294.0,1.5856968]
[1764706790880,0.3618,91295.0,91294.0,1.0558252]
[1764706791185,0.3618,91295.0,91294.0,1.5743452]
[1764706791876,0.70422,91295.0,91294.0,1.5743452]
[1764706792077,0.3618,91295.0,91294.0,1.5852968]
[1764706792283,0.3618,91295.0,91294.0,1.6852968]
[1764706792576,1.04323,91295.0,91294.0,1.2043452]
[1764706792782,1.04323,91295.0,91294.0,1.6143052]
[1764706793684,1.04323,91295.0,91294.0,0.62028]
[1764706793885,1.04323,91295.0,91294.0,0.85995602]
[1764706794186,1.04323,91295.0,91294.0,1.40428602]
[1764706794387,1.04323,91295.0,91294.0,1.60428602]
[1764706794887,1.04323,91295.0,91294.0,1.59461]
[1764706795389,0.70422,91295.0,91294.0,1.59261]
[1764706795686,0.3618,91295.0,91294.0,1.59261]
[1764706795888,0.3618,91295.0,91294.0,1.60219953]
[1764706796895,0.7618,91295.0,91263.0,0.07865257]
[1764706797184,0.7618,91295.0,91224.0,0.21012]
[1764706797185,0.6923844,91271.0,91270.0,0.20450914]
[1764706797487,0.6923844,91271.0,91270.0,0.00688]
[1764706798288,1.4139844,91271.0,91270.0,0.00688]
[1764706798500,1.40303,91271.0,91270.0,0.00688]
[1764706799192,1.40403,91271.0,91270.0,0.00688]
[1764706799595,0.0109548,91268.0,91259.0,0.0109557]
[1764706799778,0.3608,91260.0,91259.0,1.1052857]
[1764706799977,0.3608,91260.0,91259.0,1.6250457]
[1764706800173,0.3608,91260.0,91259.0,1.63454094]
[1764706800772,0.33585774,91260.0,91259.0,1.73454094]
[1764706800978,0.3618,91271.0,91270.0,0.6852845]
[1764706801178,0.3608,91271.0,91270.0,1.0352845]
[1764706801589,0.3608,91271.0,91270.0,1.5550845]
[1764706802079,0.3618,91271.0,91270.0,1.5550845]
[1764706802389,0.001,91271.0,91270.0,1.6550845]
[1764706802591,0.002,91271.0,91270.0,1.6550845]
[1764706803881,0.002,91271.0,91270.0,1.7550845]
[1764706804294,0.3608,91279.0,91278.0,0.7112735]
[1764706804593,0.3608,91279.0,91278.0,1.0812735]
[1764706805088,0.11245622,91337.0,91278.0,1.0812735]
[1764706805089,0.3608,91297.0,91296.0,0.3569014]
[1764706805289,0.3608,91313.0,91299.0,0.19758]
[1764706805589,1.04769,91302.0,91301.0,0.34595]
[1764706805795,1.04769,91302.0,91301.0,0.59595]
[1764706806180,0.3608,91302.0,91301.0,0.95032]
[1764706806588,0.00016427,91311.0,91310.0,0.7112697]
[1764706806785,0.00016427,91311.0,91310.0,1.6506297]
[1764706807084,0.00016427,91311.0,91310.0,1.62968]
[1764706807790,0.00116427,91311.0,91310.0,1.62968]
[1764706808691,0.00116427,91311.0,91310.0,1.72968]
[1764706809190,0.3608,91321.0,91320.0,0.70032]
[1764706809390,0.68689,91311.0,91310.0,0.1]
[1764706809594,0.68689,91311.0,91310.0,0.4852]
[1764706809984,0.6978396,91311.0,91310.0,0.4852]
[1764706810187,0.7216,91311.0,91310.0,1.55552]
[1764706810995,0.7216,91311.0,91310.0,1.58956]
[1764706811294,0.7216,91311.0,91310.0,1.07032]
[1764706811598,0.7216,91311.0,91310.0,2.68652]
[1764706812278,0.3608,91315.0,91313.0,0.0109493]
[1764706812482,0.3608,91315.0,91314.0,0.70032]
[1764706812681,0.0109436,91361.0,91314.0,0.70032]
[1764706812682,0.3608,91362.0,91352.0,0.70032]
[1764706812883,0.68689,91353.0,91352.0,1.27482914]
[1764706813093,0.34996,91339.0,91321.0,0.07838628]
[1764706813279,0.0109458,91343.0,91326.0,0.99696]
[1764706813479,0.0109453,91347.0,91327.0,0.51944]
[1764706813779,0.010946,91341.0,91328.0,0.00016427]
[1764706813987,0.34996,91341.0,91340.0,0.34595]
[1764706814196,0.00016427,91346.0,91340.0,1.24539]
[1764706814386,0.01110967,91346.0,91340.0,1.24539]
[1764706814592,0.0109458,91343.0,91340.0,1.24539]
[1764706815096,0.001,91341.0,91340.0,1.24539]
[1764706815695,0.002,91341.0,91340.0,1.24523]
[1764706815996,0.002,91341.0,91340.0,1.3561761]
[1764706816498,0.001,91341.0,91340.0,1.3561761]
[1764706817192,0.00016427,91346.0,91345.0,0.70032]
[1764706817392,0.33347914,91390.0,91345.0,0.70032]
[1764706817393,0.0109425,91370.0,91358.0,0.70032]
[1764706817591,0.0109425,91371.0,91359.0,0.51912]
[1764706817894,0.34996,91360.0,91359.0,1.2660138]
[1764706818203,0.00027363,91366.0,91359.0,1.25507]
[1764706818694,0.34996,91360.0,91359.0,1.25507]
[1764706819784,0.00027363,91366.0,91359.0,1.25507]
[1764706819988,0.00027363,91366.0,91359.0,1.25907]
[1764706819989,0.001,91360.0,91359.0,1.25907]
[1764706820590,0.001,91360.0,91359.0,0.73995]
[1764706820896,0.001,91360.0,91359.0,1.61408]
[1764706821200,0.001,91360.0,91359.0,1.71408]
[1764706823383,0.001,91360.0,91359.0,1.61408]
[1764706823788,0.001,91360.0,91359.0,2.6104]
[1764706823984,0.00027363,91366.0,91365.0,0.7112631]
[1764706824186,0.00016418,91372.0,91371.0,0.7112624]
[1764706824387,0.00016418,91372.0,91371.0,1.9504624]
[1764706826397,0.00016418,91372.0,91371.0,2.0504624]
[1764706826596,0.00316418,91372.0,91371.0,2.0504624]
[1764706826786,0.0109444,91354.0,91344.0,0.19758]
[1764706826987,1.12404,91354.0,91353.0,0.33168418]
[1764706827191,0.20122,91354.0,91353.0,1.03200418]
[1764706827389,0.3608,91354.0,91353.0,1.42200418]
[1764706827696,0.3608,91362.0,91361.0,0.70032]
[1764706827997,0.3608,91362.0,91361.0,1.6494]
[1764706828304,0.56202,91362.0,91361.0,1.6494]
[1764706828602,0.3717434,91362.0,91361.0,0.51908]
[1764706828894,0.20122,91354.0,91353.0,0.00016418]
[1764706829199,0.76324,91354.0,91353.0,0.77924418]
[1764706829399,0.76324,91354.0,91353.0,1.12519418]
[1764706829797,0.3608,91354.0,91353.0,1.12519418]
[1764706829990,0.3608,91354.0,91353.0,1.47952418]
[1764706830297,0.3638,91354.0,91353.0,1.47952418]
[1764706830688,0.3648,91354.0,91353.0,1.47952418]
[1764706831498,0.3638,91354.0,91353.0,1.47952418]
[1764706832191,0.3638,91354.0,91353.0,1.57952418]
[1764706832396,0.3638,91354.0,91353.0,1.47952418]
[1764706832589,0.3628,91354.0,91353.0,1.47952418]
[1764706833794,0.3608,91354.0,91353.0,1.47952418]
[1764706833996,0.3628,91354.0,91353.0,1.47952418]
[1764706834388,0.3608,91354.0,91353.0,1.47952418]
[1764706834593,0.3628,91354.0,91353.0,1.47952418]
[1764706834909,0.00016418,91372.0,91353.0,1.47952418]
[1764706834910,0.00016418,91372.0,91371.0,0.6834524]
[1764706835094,0.69254418,91372.0,91371.0,0.68623]
[1764706835408,0.69254418,91372.0,91353.0,0.36096418]
[1764706835409,0.69238,91367.0,91366.0,0.99636]
[1764706835597,0.69238,91367.0,91353.0,0.36096418]
[1764706835801,0.0109432,91365.0,91356.0,0.20097]
[1764706835997,0.0109428,91368.0,91359.0,0.0109437]
[1764706836193,0.0109428,91368.0,91359.0,0.4109437]
[1764706836508,0.0109432,91365.0,91359.0,0.4]
[1764706836704,0.0109437,91360.0,91359.0,1.07251]
[1764706836909,0.7033237,91360.0,91359.0,2.60755]
[1764706837109,0.69238,91354.0,91353.0,0.36096418]
[1764706837295,0.69238,91354.0,91353.0,0.51872418]
[1764706837801,0.3717434,91363.0,91356.0,0.0109441]
[1764706838002,0.3608,91363.0,91356.0,0.38]
[1764706838804,0.3608,91363.0,91359.0,0.0109437]
[1764706839009,0.003,91365.0,91359.0,0.4109437]
[1764706839204,0.001,91363.0,91362.0,0.32543]
[1764706839404,0.001,91363.0,91362.0,1.27423]
[1764706839802,0.003,91363.0,91362.0,1.27423]
[1764706840012,0.69538,91363.0,91362.0,0.95423]
[1764706840193,0.69238,91354.0,91353.0,0.32559418]
[1764706840397,0.69238,91354.0,91353.0,2.24067418]
[1764706840895,1.05318,91354.0,91353.0,2.24067418]
[1764706842502,1.05518,91354.0,91353.0,2.24067418]
[1764706842693,1.05518,91354.0,91353.0,2.58751418]
[1764706842999,1.05518,91354.0,91326.0,0.00027375]
[1764706843000,0.0109476,91327.0,91326.0,0.00027375]
[1764706843198,0.69238,91327.0,91326.0,0.51875375]
[1764706843493,0.69238,91327.0,91326.0,1.19126375]
[1764706843494,0.72734516,91327.0,91326.0,1.19126375]
[1764706843704,0.7033276,91327.0,91326.0,0.51875375]
[1764706844013,1.0641276,91327.0,91326.0,0.51875375]
[1764706844506,1.05318,91327.0,91326.0,0.84418375]
[1764706844707,1.05318,91327.0,91326.0,1.23418375]
[1764706844910,1.05318,91327.0,91326.0,1.23518375]
[1764706845213,1.05318,91327.0,91326.0,1.23618375]
[1764706845423,1.05618,91327.0,91326.0,1.23518375]
[1764706845711,1.05618,91327.0,91326.0,1.23418375]
[1764706846013,1.05718,91327.0,91326.0,1.23418375]
[1764706846507,1.05618,91327.0,91326.0,0.51875375]
[1764706846701,1.05718,91327.0,91326.0,0.51875375]
[1764706847506,1.05418,91327.0,91326.0,0.51875375]
[1764706847709,1.05618,91327.0,91326.0,0.51875375]
[1764706847912,1.05518,91327.0,91326.0,0.51875375]
[1764706848204,1.05618,91327.0,91326.0,0.51875375]
[1764706849114,1.05518,91327.0,91326.0,0.51875375]
[1764706849310,1.05418,91327.0,91326.0,0.51875375]
[1764706849512,1.05718,91327.0,91326.0,0.51875375]
[1764706849910,1.05718,91327.0,91326.0,0.00027375]
[1764706850317,1.05718,91327.0,91326.0,0.51959375]
[1764706850818,1.05418,91327.0,91326.0,0.51959375]
[1764706851034,1.05718,91327.0,91326.0,1.19210375]
[1764706851211,1.05718,91327.0,91326.0,0.51955375]
[1764706851519,1.05618,91327.0,91326.0,0.90955375]
[1764706851717,1.05618,91327.0,91326.0,1.23498375]
[1764706851718,1.05518,91327.0,91326.0,1.23498375]
[1764706851908,1.05618,91327.0,91326.0,1.23498375]
[1764706853317,1.05618,91327.0,91326.0,1.24593155]
[1764706853916,1.05418,91327.0,91326.0,1.23498375]
[1764706854112,1.05618,91327.0,91326.0,1.23498375]
[1764706854306,0.72306,91327.0,91326.0,1.24593155]
[1764706854512,0.3618,91327.0,91326.0,1.24593155]
[1764706854721,0.3628,91327.0,91326.0,1.24593155]
[1764706854925,0.3638,91327.0,91326.0,1.24593155]
[1764706855424,1.0671276,91327.0,91326.0,0.00027375]
[1764706855724,1.0661276,91327.0,91326.0,0.51923375]
[1764706855923,1.0641276,91327.0,91326.0,0.51923375]
[1764706856138,1.05418,91327.0,91326.0,1.19174375]
[1764706856321,0.3618,91327.0,91326.0,1.61174375]
[1764706857512,0.3628,91327.0,91326.0,1.61174375]
[1764706858014,0.3608,91327.0,91326.0,1.61174375]
[1764706859026,1.05318,91327.0,91326.0,1.27534626]
[1764706859219,0.3608,91327.0,91326.0,1.27534626]
[1764706859522,1.05318,91327.0,91326.0,0.24127626]
[1764706859919,0.04804,91287.0,91272.0,0.29031038]
[1764706860117,0.02402,91287.0,91286.0,1.03442387]
[1764706860315,0.0109516,91294.0,91286.0,1.03442387]
[1764706860620,1.5,91311.0,91310.0,0.32543]
[1764706860929,2.24550501,91311.0,91310.0,1.19203]
[1764706861113,0.7216,91311.0,91310.0,1.58203]
[1764706861316,0.00016428,91320.0,91319.0,0.67251]
[1764706861614,0.72176428,91320.0,91319.0,1.52211]
[1764706863234,0.72276428,91320.0,91319.0,1.52211]
[1764706863617,0.72476428,91320.0,91319.0,1.52211]
[1764706864219,0.72476428,91320.0,91319.0,1.5330586]
[1764706864422,0.72376428,91320.0,91319.0,1.5330586]
[1764706864626,0.72476428,91320.0,91319.0,1.5330586]
[1764706865126,0.72276428,91320.0,91319.0,1.5330586]
[1764706865334,0.3608,91335.0,91334.0,0.6999368]
[1764706865628,0.3608,91335.0,91334.0,1.6492968]
[1764706866313,0.3608,91341.0,91340.0,0.68899]
[1764706866515,0.3608,91341.0,91340.0,1.11899]
[1764706867418,0.00016428,91344.0,91343.0,0.68899]
[1764706867618,0.00016428,91344.0,91343.0,1.63819]
[1764706868316,4.28e-06,91344.0,91343.0,1.63819]
[1764706869020,0.3608,91355.0,91354.0,0.68899]
[1764706869226,0.3608,91363.0,91362.0,0.0109434]
[1764706869529,0.3608,91383.0,91373.0,0.0109421]
[1764706869832,0.3608,91383.0,91382.0,0.35317]
[1764706870022,0.3608,91383.0,91382.0,1.63803]
[1764706871022,0.3608,91383.0,91382.0,1.63903]
[1764706871419,0.3608,91383.0,91382.0,1.64303]
[1764706872732,0.00016418,91392.0,91391.0,0.68899]
[1764706872930,0.00016418,91392.0,91391.0,1.60775]
[1764706873825,0.00016418,91392.0,91391.0,1.60875]
[1764706874020,0.00016418,91392.0,91391.0,1.61175]
[1764706874217,0.00016418,91392.0,91391.0,1.28349704]
[1764706874422,0.00016418,91392.0,91391.0,1.28049704]
[1764706874617,0.00016418,91392.0,91391.0,1.28349704]
[1764706876232,0.00016418,91392.0,91391.0,1.29443704]
[1764706877237,0.00016418,91392.0,91391.0,1.28349704]
[1764706877741,0.80684418,91392.0,91391.0,0.004]
[1764706878039,0.80684418,91392.0,91391.0,0.52224]
[1764706878428,0.80684418,91392.0,91391.0,0.004]
[1764706878642,0.80684418,91392.0,91391.0,0.52224]
[1764706878824,0.80684418,91392.0,91391.0,0.52216]
[1764706879833,0.67693,91375.0,91374.0,0.35317]
[1764706880019,0.67693,91374.0,91373.0,0.00016418]
[1764706880223,0.67693,91374.0,91373.0,1.90440418]
[1764706880623,0.3608,91385.0,91384.0,0.6999308]
[1764706880836,0.3608,91385.0,91384.0,1.5979708]
[1764706881833,1.03773,91385.0,91384.0,0.45317]
[1764706882138,1.03773,91385.0,91384.0,1.51408]
[1764706882635,1.03773,91385.0,91384.0,1.51708]
[1764706883325,1.03773,91385.0,91384.0,1.51808]
[1764706883522,1.03773,91385.0,91384.0,1.63808]
[1764706884627,1.03773,91385.0,91384.0,1.87808]
[1764706885237,1.03773,91385.0,91384.0,1.61808]
[1764706885443,1.03773,91385.0,91384.0,1.81808]
[1764706885835,0.3608,91385.0,91384.0,2.50703]
[1764706887939,0.3608,91385.0,91384.0,2.60703]
[1764706888136,0.3608,91385.0,91384.0,1.09299]
[1764706888339,0.3608,91385.0,91384.0,2.50683]
[1764706890236,0.00016418,91392.0,91384.0,2.50683]
[1764706890237,0.00016418,91392.0,91391.0,0.69993]
[1764706890443,0.00016418,91392.0,91391.0,1.57741]
[1764706891047,0.3608,91401.0,91400.0,0.6999289]
[1764706891344,1.03773,91401.0,91400.0,1.50639]
[1764706892037,0.3608,91401.0,91400.0,1.50639]
[1764706892639,0.3608,91401.0,91400.0,1.50739]
[1764706893139,0.36096418,91410.0,91405.0,0.7063683]
[1764706893347,0.69830351,91406.0,91405.0,2.59879]
[1764706893944,0.00027351,91406.0,91405.0,2.69879]
[1764706895048,0.00027351,91406.0,91405.0,2.79879]
[1764706895249,0.00027351,91406.0,91405.0,2.79979]
[1764706895445,0.00427351,91406.0,91405.0,2.79979]
[1764706895643,0.00427351,91406.0,91405.0,2.69979]
[1764706895833,0.68872351,91406.0,91405.0,1.57216]
[1764706896037,0.68972351,91406.0,91405.0,1.57116]
[1764706897236,0.36439351,91406.0,91405.0,1.57116]
[1764706897637,0.1985,91399.0,91377.0,0.20561]
[1764706897853,0.68445,91363.0,91362.0,0.00974256]
[1764706898035,0.35912,91378.0,91377.0,0.65412]
[1764706898239,0.38322912,91378.0,91377.0,1.59268]
[1764706898542,0.0109411,91382.0,91377.0,1.59268]
[1764706898743,0.0109413,91380.0,91377.0,1.59268]
[1764706898946,0.00016418,91389.0,91377.0,1.59268]
[1764706899145,0.3608,91378.0,91377.0,1.59368]
[1764706900054,0.3608,91378.0,91377.0,1.59268]
[1764706901049,0.3608,91378.0,91370.0,0.00016418]
[1764706901050,0.6953924,91371.0,91370.0,0.99612418]
[1764706901250,1.08063683,91371.0,91370.0,1.51456418]
[1764706902247,1.08263683,91371.0,91370.0,1.51456418]
[1764706903048,1.08363683,91371.0,91370.0,1.51456418]
[1764706903244,1.07269443,91371.0,91370.0,1.51456418]
[1764706903444,1.04825,91371.0,91370.0,1.86456418]
[1764706904351,1.07466547,91371.0,91370.0,1.51456418]
[1764706904753,1.05025,91371.0,91370.0,1.51456418]
[1764706905055,1.07466536,91371.0,91370.0,1.51456418]
[1764706905252,1.05025,91371.0,91370.0,1.51456418]
[1764706905457,1.05025,91371.0,91370.0,0.51836418]
[1764706906442,1.05025,91371.0,91370.0,0.87836418]
[1764706906644,1.05025,91371.0,91370.0,0.74836418]
[1764706908458,1.05025,91371.0,91370.0,1.07764418]
[1764706910660,0.3658,91371.0,91370.0,1.07764418]
[1764706912150,1.05025,91371.0,91370.0,0.00016418]
[1764706912350,1.05025,91371.0,91370.0,0.31312418]
[1764706912550,1.07463333,91371.0,91370.0,0.31312418]
[1764706913348,1.07463333,91371.0,91344.0,0.20561]
[1764706913349,0.6953944,91354.0,91353.0,1.32544]
[1764706913554,0.6953944,91354.0,91353.0,1.51396]
[1764706913862,0.68445,91343.0,91342.0,0.99616]
[1764706914050,0.68445,91343.0,91342.0,1.51396]
[1764706914657,1.40605,91343.0,91342.0,1.51396]
[1764706916556,1.40605,91343.0,91342.0,1.51496]
[1764706919458,1.40605,91343.0,91342.0,1.51396]
[1764706919762,1.41005,91343.0,91342.0,1.51396]
[1764706919962,1.41005,91343.0,91342.0,1.88396]
[1764706920150,0.7256,91343.0,91342.0,1.88396]
[1764706921076,0.7216,91343.0,91342.0,1.88396]
[1764706921256,0.7236,91343.0,91342.0,1.88396]
[1764706921560,0.7236,91343.0,91342.0,2.53788]
[1764706922352,1.40805,91343.0,91342.0,1.02412]
[1764706922557,0.68445,91343.0,91342.0,1.54156]
[1764706922767,0.68645,91343.0,91342.0,1.54156]
[1764706923063,1.40805,91343.0,91342.0,1.54156]
[1764706923255,1.40805,91343.0,91341.0,9.255e-05]
[1764706923256,0.7182458,91342.0,91341.0,9.255e-05]
[1764706923456,0.7182458,91342.0,91341.0,0.51745255]
[1764706923760,0.7182468,91334.0,91333.0,0.00016418]
[1764706924065,1.1699468,91334.0,91333.0,0.62768418]
[1764706924256,1.1699468,91334.0,91333.0,0.11016418]
[1764706924452,1.1699468,91334.0,91333.0,0.00016418]
[1764706924663,0.7182476,91327.0,91326.0,0.00027375]
[1764706924860,1.07914015,91327.0,91326.0,0.00027375]
[1764706925060,1.07914015,91327.0,91326.0,0.28434435]
[1764706925267,1.07914015,91327.0,91319.0,0.0109485]
[1764706925268,0.7182485,91320.0,91319.0,0.0109485]
[1764706925468,1.0790485,91320.0,91319.0,0.9283885]
[1764706926166,1.0790485,91320.0,91319.0,0.61744]
[1764706926355,1.0681,91320.0,91319.0,0.9483886]
[1764706926555,0.7073,91316.0,91315.0,0.0109491]
[1764706926755,1.0681,91316.0,91315.0,0.9183091]
[1764706926956,1.0681,91316.0,91315.0,1.2714291]
[1764706927166,1.0681,91316.0,91315.0,0.58736]
[1764706927365,1.0681,91316.0,91310.0,0.00016418]
[1764706927366,0.9058,91311.0,91310.0,0.00016418]
[1764706927571,0.7073,91311.0,91310.0,0.61744418]
[1764706927871,0.7073,91311.0,91310.0,0.51756418]
[1764706927872,0.9058,91311.0,91310.0,0.51756418]
[1764706929961,0.001,91311.0,91310.0,1.56185418]
[1764706930776,0.002,91311.0,91310.0,1.56185418]
[1764706931065,0.006,91311.0,91310.0,1.56185418]
[1764706931864,0.006,91311.0,91310.0,1.04445418]
[1764706932068,0.005,91311.0,91310.0,2.65829418]
[1764706932570,0.3608,91316.0,91315.0,0.7052391]
[1764706932771,0.3608,91316.0,91315.0,1.0652391]
[1764706932973,9.255e-05,91327.0,91326.0,0.69429]
[1764706933165,9.255e-05,91327.0,91326.0,2.0035978]
[1764706935176,0.3608,91349.0,91348.0,0.7052351]
[1764706935469,0.3608,91349.0,91322.0,0.1821]
[1764706935470,0.21179,91344.0,91322.0,0.1821]
[1764706935658,0.21179,91333.0,91323.0,0.51744]
[1764706935858,0.91909,91333.0,91332.0,0.35312]
[1764706936874,0.0109478,91327.0,91323.0,0.51760427]
[1764706937076,0.3666578,91327.0,91326.0,0.69429]
[1764706937274,0.35571,91327.0,91326.0,1.08429]
[1764706937774,0.3666576,91327.0,91326.0,1.08429]
[1764706938371,0.3666576,91327.0,91326.0,1.60193]